bitfinex-derivatives/quotes_ETHF0:USTF0_20251107
["timestamp","ask_amount","ask_price","bid_price","bid_amount"]
[1762527075823,0.49688,3262.6,3262.5,0.004597]
[1762527076217,0.49686,3262.8,3262.5,0.004597]
[1762527076416,0.00385839,3262.9,3262.7,0.49686]
[1762527076712,0.00385839,3262.9,3262.6,0.49687]
[1762527076913,0.00385839,3262.9,3262.6,0.00274491]
[1762527077219,0.49685,3262.8,3262.6,0.00274491]
[1762527077517,0.00385839,3262.9,3262.6,0.00274491]
[1762527078110,0.49686,3262.8,3262.6,0.00274491]
[1762527078314,8.0,3262.8,3261.2,3.70489]
[1762527078511,3.21165839,3262.9,3261.6,3.2078]
[1762527078717,0.49693,3262.3,3261.6,3.2078]
[1762527078913,0.497,3261.9,3261.2,3.2078]
[1762527079113,3.2078,3262.5,3261.6,3.2078]
[1762527079315,3.2078,3262.5,3261.7,0.004597]
[1762527079515,3.21165839,3262.9,3261.7,0.501607]
[1762527079715,3.21165839,3262.9,3261.7,0.004597]
[1762527079915,0.00385839,3262.9,3262.2,0.49693]
[1762527080116,0.00385839,3262.9,3262.0,3.2078]
[1762527080316,0.49699,3262.0,3261.7,0.004597]
[1762527080513,0.49697,3262.1,3261.7,0.004597]
[1762527080715,0.49699,3261.9,3261.7,0.004597]
[1762527080918,3.2078,3262.8,3261.7,0.004597]
[1762527081122,0.00385839,3262.9,3262.5,0.49689]
[1762527081320,3.2078,3262.8,3261.7,0.004597]
[1762527081624,0.49699,3261.9,3261.7,0.004597]
[1762527082423,0.49702,3261.7,3261.6,0.00296946]
[1762527082620,3.2078,3262.1,3261.6,0.00296946]
[1762527082820,0.49702,3261.7,3261.6,0.00296946]
[1762527083026,3.70482,3261.7,3261.6,0.00296946]
[1762527083225,3.2078,3261.7,3261.6,0.00296946]
[1762527083528,3.2078,3262.6,3261.6,11.21076946]
[1762527083727,0.49695,3262.2,3261.7,0.49702]
[1762527083927,0.49702,3261.7,3261.6,3.21076946]
[1762527084122,3.2078,3262.7,3261.6,3.21076946]
[1762527084423,0.00385839,3262.9,3262.4,3.2078]
[1762527084620,0.7421,3265.6,3263.5,0.49674]
[1762527084621,3.2078,3264.2,3263.5,0.49674]
[1762527084824,3.2078,3264.6,3263.6,3.2078]
[1762527085126,3.2078,3265.1,3264.4,0.4966]
[1762527085432,3.2078,3265.1,3264.1,3.2078]
[1762527085724,0.004597,3264.9,3264.3,0.004597]
[1762527086128,0.004597,3264.9,3264.6,3.2078]
[1762527086316,0.004597,3264.9,3264.7,0.49656]
[1762527086523,0.6483,3266.9,3264.7,14.1256]
[1762527086524,3.2078,3266.0,3264.7,14.1256]
[1762527086723,3.2078,3266.5,3265.2,3.2078]
[1762527087123,3.2078,3266.5,3265.4,0.49645]
[1762527087319,3.2078,3266.5,3265.2,3.2078]
[1762527087320,3.2078,3266.1,3265.2,3.2078]
[1762527087524,3.2078,3266.5,3265.6,3.70422]
[1762527087725,3.2078,3266.5,3265.2,3.2078]
[1762527087924,0.49642,3265.7,3265.5,0.004597]
[1762527088123,0.49655,3264.9,3264.3,0.8544]
[1762527088329,3.2078,3265.4,3264.6,3.2078]
[1762527088627,0.4965,3265.2,3264.6,3.2078]
[1762527088827,3.2078,3265.8,3264.6,3.2078]
[1762527089024,3.2078,3265.8,3264.9,0.004597]
[1762527089219,3.2078,3265.8,3265.0,3.2078]
[1762527089425,0.004597,3266.2,3264.9,0.004597]
[1762527089426,0.500937,3266.2,3265.4,3.2078]
[1762527089719,0.500937,3266.2,3264.9,0.004597]
[1762527089720,0.004597,3266.2,3265.9,0.49638]
[1762527089919,0.00286806,3266.5,3265.8,3.2078]
[1762527089920,0.00286806,3266.5,3266.4,0.4963]
[1762527090127,0.00286806,3266.5,3266.4,0.49915849]
[1762527090330,0.49617,3267.3,3266.4,6.12605849]
[1762527090531,3.2078,3267.2,3266.4,0.00285849]
[1762527090833,3.2078,3267.7,3266.7,3.2078]
[1762527091035,3.2078,3267.7,3266.4,0.00285849]
[1762527091221,0.00458989,3267.5,3267.0,3.2078]
[1762527091526,0.00458989,3267.5,3267.4,3.2078]
[1762527091729,0.00458989,3267.5,3266.9,0.75928989]
[1762527092124,0.00458989,3267.5,3267.4,3.2078]
[1762527092728,0.4962,3267.1,3266.9,3.96708989]
[1762527092935,0.00458989,3267.5,3267.0,0.49621]
[1762527093139,0.00458989,3267.5,3266.9,3.21238989]
[1762527093140,0.00458989,3267.5,3267.3,0.49616]
[1762527093631,3.2078,3268.5,3267.4,14.1208]
[1762527093831,3.2078,3268.5,3268.3,0.49601]
[1762527094223,3.2078,3268.5,3268.3,0.496]
[1762527094424,3.2078,3269.3,3268.3,6.1192]
[1762527094631,0.49583,3269.6,3269.1,3.2078]
[1762527094836,3.2078,3269.9,3268.9,3.2078]
[1762527095032,3.2078,3269.9,3269.7,0.4958]
[1762527095331,3.2078,3269.9,3269.3,3.2078]
[1762527095332,3.2078,3271.8,3269.8,3.2078]
[1762527095527,0.00339828,3271.8,3271.5,0.49553]
[1762527095730,0.00339828,3271.8,3271.2,3.2078]
[1762527095929,0.00339828,3271.8,3271.1,3.2078]
[1762527096429,3.2078,3273.1,3271.5,3.2078]
[1762527096631,0.49524,3273.4,3272.5,0.49537]
[1762527096835,0.49536,3272.7,3272.2,3.2078]
[1762527097028,0.49538,3272.5,3271.8,0.7547]
[1762527097344,0.49547,3272.0,3271.8,0.00224243]
[1762527097633,0.00790109,3272.5,3271.8,0.00683232]
[1762527097835,0.49547,3272.0,3271.8,0.00683232]
[1762527098029,3.2078,3272.2,3271.8,0.00683232]
[1762527098239,0.49546,3272.0,3271.8,0.00683232]
[1762527098829,0.00790109,3272.5,3271.8,0.50231232]
[1762527099135,0.00790109,3272.5,3271.8,0.00683232]
[1762527099432,3.70326,3272.0,3271.8,0.00683232]
[1762527099929,3.2078,3272.3,3271.8,0.00683232]
[1762527100130,3.2078,3271.9,3271.8,0.00683232]
[1762527100335,0.49547,3272.0,3271.8,0.00683232]
[1762527100531,3.70327,3272.0,3271.8,0.00683232]
[1762527100729,3.2078,3272.0,3271.8,0.00683232]
[1762527100931,0.00790109,3272.5,3272.3,0.4954]
[1762527101130,3.2078,3273.4,3272.2,3.2078]
[1762527101433,3.2078,3273.4,3272.1,0.7166]
[1762527101434,2e-05,3273.6,3273.2,0.49526]
[1762527101638,2e-05,3273.6,3272.3,3.2078]
[1762527101932,3.2078,3273.4,3272.3,3.2078]
[1762527102135,0.4953,3273.1,3272.3,3.2078]
[1762527102335,0.0032535,3273.1,3272.7,0.49534]
[1762527102541,0.0032535,3273.1,3272.3,3.2078]
[1762527102730,0.0032535,3273.1,3272.7,0.49534]
[1762527102925,0.0032535,3273.1,3272.1,0.7166]
[1762527102926,0.0032535,3273.1,3272.9,0.49531]
[1762527103236,0.0032535,3273.1,3272.8,3.2078]
[1762527103435,0.0032535,3273.1,3272.2,3.2078]
[1762527103631,3.2110535,3273.1,3272.2,3.2078]
[1762527104038,3.2110535,3273.1,3272.1,0.7166]
[1762527104039,0.49536,3272.7,3272.1,1.21203]
[1762527104227,3.2078,3272.5,3272.1,0.7166]
[1762527104540,3.2078,3272.9,3272.1,0.7166]
[1762527104737,3.2078,3272.9,3272.1,1.21203]
[1762527104738,0.49539,3272.5,3272.1,1.21203]
[1762527105038,0.49543,3272.2,3271.8,3.21463232]
[1762527105235,3.2078,3272.9,3271.8,3.21463232]
[1762527105537,0.0032535,3273.1,3272.2,3.2078]
[1762527105740,0.49532,3272.9,3272.6,0.49536]
[1762527106036,0.0032535,3273.1,3272.2,3.2078]
[1762527106037,0.49535,3272.7,3272.2,3.2078]
[1762527106238,3.2078,3272.9,3272.1,0.7166]
[1762527106438,0.49541,3272.3,3272.1,0.7166]
[1762527106642,0.49537,3272.6,3272.3,0.49541]
[1762527106840,3.2078,3272.9,3271.8,3.21463232]
[1762527107131,3.2078,3272.0,3270.1,3.2078]
[1762527107332,0.49565,3270.8,3270.1,3.2078]
[1762527107529,0.49552,3271.6,3270.5,3.2078]
[1762527107836,0.49569,3270.5,3269.7,3.2078]
[1762527108035,3.2078,3271.0,3269.7,3.2078]
[1762527108230,0.49574,3270.1,3270.0,0.00458239]
[1762527108431,0.49579,3269.8,3269.7,0.00257133]
[1762527108738,3.70359,3269.8,3269.7,0.00257133]
[1762527109034,11.70359,3269.8,3269.7,0.00257133]
[1762527109241,0.49593,3268.9,3268.5,0.49598]
[1762527109435,0.49599,3268.5,3268.4,0.00458239]
[1762527109635,3.2078,3268.6,3267.4,3.2078]
[1762527109936,3.2078,3267.7,3266.4,3.9244]
[1762527110140,3.21055428,3267.7,3266.4,3.9281342]
[1762527110334,0.49629,3266.6,3266.4,0.0037342]
[1762527110633,3.2078,3266.5,3266.4,0.0037342]
[1762527110833,0.49629,3266.6,3266.4,0.0037342]
[1762527111332,0.00459038,3266.8,3266.4,0.0037342]
[1762527112241,3.2078,3266.5,3266.4,0.0037342]
[1762527112440,0.00459038,3266.8,3266.4,0.0037342]
[1762527113038,0.00459038,3266.8,3266.7,3.2078]
[1762527113237,0.00459038,3266.8,3266.4,0.0037342]
[1762527113741,3.70409,3266.6,3266.4,0.0037342]
[1762527114238,11.70409,3266.6,3266.4,0.0037342]
[1762527114440,11.70409,3266.6,3264.4,3.2078]
[1762527114441,0.49648,3265.3,3264.4,3.2078]
[1762527114738,3.2078,3265.6,3264.7,0.49656]
[1762527114938,3.2078,3265.6,3264.9,0.49653]
[1762527115141,3.2078,3265.6,3265.4,0.49645]
[1762527115346,0.00365074,3265.6,3265.4,0.00226718]
[1762527115646,0.00365074,3265.6,3265.5,0.49644]
[1762527115839,0.00365074,3265.6,3265.4,0.49871718]
[1762527116242,0.49644,3265.5,3265.4,0.00226718]
[1762527116837,0.00365074,3265.6,3265.4,0.00226718]
[1762527117241,0.50009074,3265.6,3265.4,0.00226718]
[1762527117443,3.2078,3266.5,3265.4,3.21006718]
[1762527117642,3.2078,3266.0,3265.4,0.00226718]
[1762527118147,0.00459038,3266.8,3265.7,3.2078]
[1762527118343,3.2078,3266.7,3265.7,3.2078]
[1762527118539,0.49643,3265.6,3265.4,0.00226718]
[1762527118944,0.0031063,3266.7,3265.5,3.2078]
[1762527119148,0.49633,3266.3,3265.9,3.70418]
[1762527119448,0.0031063,3266.7,3265.5,3.2078]
[1762527119747,0.4993763,3266.7,3266.2,0.49633]
[1762527119941,0.49629,3266.6,3266.2,0.49633]
[1762527120140,0.0031063,3266.7,3265.5,3.2078]
[1762527120343,0.49636,3266.1,3265.6,0.49642]
[1762527120538,3.2078,3266.1,3265.5,3.2078]
[1762527120848,0.0031063,3266.7,3265.4,0.00226718]
[1762527120849,3.2078,3266.5,3265.4,0.00226718]
[1762527121146,0.0031063,3266.7,3265.7,3.2078]
[1762527121642,0.0031063,3266.7,3265.4,0.00226718]
[1762527121643,0.0031063,3266.7,3266.1,3.2078]
[1762527121841,0.0031063,3266.7,3265.7,3.2078]
[1762527122035,0.0031063,3266.7,3265.4,0.00226718]
[1762527122446,3.2078,3265.8,3264.3,3.9244]
[1762527122644,3.2078,3265.9,3264.3,3.9244]
[1762527122950,3.2078,3265.4,3264.3,3.2078]
[1762527123152,3.2078,3265.8,3264.3,3.2078]
[1762527123447,3.2078,3266.3,3265.2,3.2078]
[1762527123646,3.2109063,3266.7,3265.6,3.2078]
[1762527123851,3.2078,3266.3,3265.2,3.901]
[1762527124148,3.2078,3265.9,3264.7,0.00459038]
[1762527124447,3.2078,3265.9,3264.8,3.2078]
[1762527124645,3.2078,3265.9,3265.2,3.2078]
[1762527124846,3.2078,3265.9,3264.8,3.2078]
[1762527125249,3.2078,3265.9,3264.7,0.00459038]
[1762527125451,3.2078,3265.5,3264.7,0.00459038]
[1762527125951,3.2078,3265.2,3264.7,0.00459038]
[1762527126152,3.2078,3264.8,3264.3,0.00267764]
[1762527126450,3.2078,3264.4,3264.3,0.00267764]
[1762527126642,0.00288698,3264.4,3264.3,0.00267764]
[1762527127053,3.2078,3266.5,3264.3,8.00267764]
[1762527127252,3.2078,3266.9,3265.9,3.2078]
[1762527127544,11.026,3269.3,3266.4,3.2078]
[1762527127545,3.2078,3267.3,3266.4,3.2078]
[1762527127750,3.2078,3267.7,3266.4,3.2078]
[1762527127958,3.2078,3267.3,3266.0,3.2078]
[1762527128247,3.2078,3266.5,3266.3,0.00459038]
[1762527128447,0.6744,3266.4,3264.4,3.2078]
[1762527128756,3.2078,3266.3,3264.8,3.2078]
[1762527128944,3.2078,3266.7,3265.3,3.2078]
[1762527129446,3.2078,3266.7,3265.7,3.21087265]
[1762527129647,0.00459038,3267.0,3266.5,3.2078]
[1762527130147,0.00230231,3267.7,3266.9,3.2078]
[1762527130352,0.00230231,3267.7,3266.9,3.21171741]
[1762527130647,0.00230231,3267.7,3267.6,0.6932]
[1762527130846,3.2078,3267.9,3267.3,3.2078]
[1762527131041,3.21239038,3267.9,3267.3,3.2078]
[1762527131453,0.6744,3271.2,3266.9,0.00391741]
[1762527131454,3.2078,3268.8,3267.7,3.2078]
[1762527131652,3.2078,3268.8,3268.4,3.2078]
[1762527131952,3.2078,3269.9,3268.4,3.2078]
[1762527132244,3.2078,3270.9,3269.5,3.2078]
[1762527132453,3.2078,3270.1,3268.8,0.6932]
[1762527132645,3.2078,3269.7,3268.5,3.2078]
[1762527133047,0.00381147,3269.7,3268.9,3.2078]
[1762527133356,0.00381147,3269.7,3269.3,3.2078]
[1762527133549,3.2078,3269.6,3268.5,3.21123286]
[1762527133846,3.2078,3269.3,3269.2,0.00459038]
[1762527134242,11.2078,3269.3,3268.5,0.00343286]
[1762527134451,3.2078,3269.3,3268.5,0.00343286]
[1762527134854,3.21161147,3269.7,3268.5,0.00343286]
[1762527135045,3.2078,3269.2,3268.5,0.00343286]
[1762527135353,3.2078,3269.2,3268.5,0.00650551]
[1762527136150,0.00381147,3269.7,3269.0,3.2078]
[1762527136349,0.00381147,3269.7,3269.4,3.2078]
[1762527136756,0.00459038,3270.5,3269.4,3.2078]
[1762527136757,0.00459038,3270.5,3269.5,6.1168]
[1762527136950,0.00459038,3270.5,3270.3,3.2078]
[1762527137854,0.00794479,3270.5,3270.3,11.2078]
[1762527138055,0.00794479,3270.5,3270.4,6.1152]
[1762527138351,3.2078,3271.3,3270.3,3.2078]
[1762527138554,3.2078,3271.3,3270.8,3.2078]
[1762527138853,10.96,3273.3,3270.8,3.2078]
[1762527138854,3.2078,3271.9,3270.8,9.3222]
[1762527139046,3.2078,3271.9,3270.8,3.2078]
[1762527139242,0.00459038,3271.7,3271.4,3.2078]
[1762527139452,3.2078,3272.4,3271.4,3.2078]
[1762527139752,3.2078,3272.4,3271.3,3.2078]
[1762527140347,3.2078,3272.4,3271.7,3.2078]
[1762527140544,0.00459038,3272.2,3271.3,3.2078]
[1762527140748,0.00459038,3272.2,3271.7,3.2078]
[1762527141748,0.00459038,3272.2,3272.1,3.2078]
[1762527142355,2e-05,3273.6,3272.1,3.2078]
[1762527142649,2e-05,3273.6,3273.3,3.2078]
[1762527143055,2e-05,3273.6,3273.4,6.1096]
[1762527143244,2e-05,3273.6,3273.3,3.2078]
[1762527143447,0.00234189,3273.6,3273.4,0.6953482]
[1762527143651,0.00234189,3273.6,3273.4,0.0021482]
[1762527145553,0.00234189,3273.6,3273.2,0.00458316]
[1762527145753,0.00234189,3273.6,3272.8,3.2078]
[1762527145955,3.2078,3273.3,3272.8,3.2078]
[1762527146452,0.00234189,3273.6,3273.2,3.2078]
[1762527147158,0.00234189,3273.6,3273.1,0.00458316]
[1762527147356,0.00234189,3273.6,3273.1,3.21238316]
[1762527147563,0.00234189,3273.6,3273.5,3.2078]
[1762527148560,0.00458316,3273.8,3273.5,3.2078]
[1762527149461,0.00813395,3273.8,3273.5,3.2078]
[1762527149859,11.011,3276.8,3273.5,3.2078]
[1762527149860,3.2078,3275.2,3273.6,0.6162]
[1762527150159,3.2078,3275.2,3274.5,3.2078]
[1762527150664,3.2078,3275.6,3274.9,3.2078]
[1762527150862,3.2078,3275.6,3273.6,0.6162]
[1762527150863,0.00458316,3275.2,3274.5,3.21238316]
[1762527151064,0.00458316,3275.2,3274.9,3.2078]
[1762527151658,3.21123844,3275.6,3274.9,3.2078]
[1762527151659,3.844e-05,3275.6,3274.9,3.2078]
[1762527151960,11.008,3278.9,3274.8,0.6162]
[1762527151961,3.2078,3276.9,3275.5,3.2078]
[1762527152256,3.2078,3276.9,3274.8,0.6162]
[1762527152257,3.2078,3276.9,3276.3,3.2078]
[1762527152463,3.2078,3276.9,3275.9,3.2078]
[1762527152666,3.2078,3276.9,3276.3,3.2078]
[1762527152667,0.00458316,3276.7,3276.3,3.2078]
[1762527152959,0.00676352,3276.7,3276.3,3.21030621]
[1762527153354,8.00676352,3276.7,3276.3,0.00250621]
[1762527153556,3.2078,3276.4,3275.5,3.2078]
[1762527154054,0.00676352,3276.7,3275.5,3.2078]
[1762527154255,0.00676352,3276.7,3275.9,3.2078]
[1762527154455,0.00676352,3276.7,3276.0,0.00458316]
[1762527154655,0.00676352,3276.7,3276.4,3.2078]
[1762527155357,3.2078,3278.0,3276.4,3.2078]
[1762527155663,3.2078,3278.0,3277.1,3.2078]
[1762527155965,3.2078,3278.0,3277.2,0.6162]
[1762527156264,0.00365638,3278.0,3276.7,3.2078]
[1762527156462,0.00458316,3277.9,3276.7,3.2078]
[1762527156655,3.2078,3277.7,3276.7,3.2078]
[1762527156851,0.00458316,3277.9,3276.7,3.2078]
[1762527157055,0.00458316,3277.9,3277.2,3.2078]
[1762527159362,0.00458316,3277.9,3276.0,0.62078316]
[1762527159363,3.2078,3277.3,3276.4,3.2078]
[1762527159661,3.2078,3277.3,3276.3,3.2078]
[1762527161570,0.00458316,3277.9,3277.2,3.2078]
[1762527161762,0.00458316,3277.9,3277.6,3.2078]
[1762527161962,3.2078,3279.2,3277.6,3.2078]
[1762527162260,3.2078,3279.2,3278.3,3.2078]
[1762527162458,3.2078,3279.2,3278.7,3.2078]
[1762527162658,3.2078,3279.2,3278.3,3.2078]
[1762527162861,3.2078,3279.2,3277.9,3.2078]
[1762527163066,0.0045425,3278.9,3278.3,3.2078]
[1762527163465,0.0045425,3278.9,3278.2,0.0045754]
[1762527163666,0.0045425,3278.9,3278.3,3.2078]
[1762527164065,3.2078,3278.7,3278.2,0.0045754]
[1762527164471,11.2078,3278.7,3278.2,0.0045754]
[1762527164771,3.2078,3278.7,3278.2,0.0045754]
[1762527165168,0.0045425,3278.9,3278.4,3.2078]
[1762527165562,0.0045425,3278.9,3278.2,0.0045754]
[1762527166760,0.0045425,3278.9,3278.2,3.2123754]
[1762527167165,0.0045425,3278.9,3278.6,3.2078]
[1762527167366,3.2078,3280.9,3279.1,0.589]
[1762527167562,3.2078,3280.9,3280.3,3.2078]
[1762527168171,3.2078,3281.0,3279.9,3.2078]
[1762527168473,3.2078,3280.6,3280.1,0.0045754]
[1762527168673,3.2078,3280.6,3279.9,0.0032319]
[1762527169273,0.00322952,3281.0,3280.4,3.2078]
[1762527169471,0.00322952,3281.0,3280.3,3.2078]
[1762527169671,0.00780492,3281.0,3280.3,0.0045754]
[1762527169975,3.2078,3280.8,3280.3,0.0045754]
[1762527170466,0.00780492,3281.0,3280.3,0.0045754]
[1762527170970,0.00780492,3281.0,3280.7,3.2078]
[1762527171376,0.00780492,3281.0,3280.3,0.0045754]
[1762527171871,0.00780492,3281.0,3280.5,3.2078]
[1762527172477,0.00780492,3281.0,3280.8,3.2078]
[1762527172866,4.92e-06,3281.0,3280.8,3.2078]
[1762527173673,3.2078,3282.1,3280.8,3.2078]
[1762527173984,3.210185,3282.1,3281.4,3.2078]
[1762527174680,0.002385,3282.1,3281.4,3.2078]
[1762527174982,0.002385,3282.1,3281.6,3.2078]
[1762527175386,8.002385,3282.1,3281.6,3.2078]
[1762527175977,3.2078,3281.9,3280.9,3.2078]
[1762527177079,3.2078,3281.8,3280.5,3.2078]
[1762527177271,3.2078,3280.9,3280.3,0.0045754]
[1762527177475,3.2078,3281.4,3280.4,0.4941]
[1762527177682,3.2078,3281.6,3280.5,3.2078]
[1762527178180,3.2078,3281.6,3280.7,3.2078]
[1762527178380,3.2078,3281.2,3280.6,0.49416]
[1762527178583,3.2078,3281.2,3280.3,3.7065754]
[1762527178783,3.2078,3280.4,3280.3,0.0045754]
[1762527178981,3.2078,3280.4,3279.9,0.0032319]
[1762527179179,3.70205,3280.0,3279.9,0.0032319]
[1762527179490,0.49433,3279.5,3278.9,0.49441]
[1762527179686,3.2078,3279.4,3278.9,0.49441]
[1762527179884,0.49436,3279.3,3278.4,3.2078]
[1762527180078,0.49441,3279.0,3278.5,0.0045754]
[1762527180282,3.2078,3279.0,3278.5,0.0045754]
[1762527180482,0.0045754,3279.2,3278.9,3.70222]
[1762527180686,3.2078,3279.9,3279.7,0.49428]
[1762527182277,0.00250385,3280.0,3279.6,0.49431]
[1762527182479,0.00250385,3280.0,3279.5,3.2078]
[1762527182480,0.49428,3279.8,3279.2,3.2078]
[1762527182679,0.00250385,3280.0,3279.1,0.5749]
[1762527182880,0.00250385,3280.0,3279.9,3.70206]
[1762527183077,3.7019,3281.0,3280.4,0.49418]
[1762527183280,3.2078,3281.0,3280.4,0.0045754]
[1762527183682,3.2078,3281.0,3280.8,0.49412]
[1762527183890,3.2078,3281.0,3280.4,0.4987554]
[1762527184088,3.2078,3281.0,3280.4,0.0045754]
[1762527184382,3.2078,3281.0,3280.8,0.49412]
[1762527184383,0.00289582,3281.0,3280.8,0.49412]
[1762527184590,3.2078,3281.6,3281.5,0.49402]
[1762527184784,3.2078,3282.0,3281.8,0.49397]
[1762527184976,3.2078,3282.8,3282.2,0.49391]
[1762527185187,3.2078,3283.2,3282.0,3.2078]
[1762527185383,3.2078,3283.6,3283.0,0.49379]
[1762527185685,3.21152024,3283.6,3283.1,0.49377]
[1762527185877,3.21152024,3283.6,3283.0,0.00685307]
[1762527186489,3.21152024,3283.6,3283.0,0.50064307]
[1762527186685,0.00372024,3283.6,3283.4,0.49373]
[1762527186987,0.00372024,3283.6,3283.3,3.70154]
[1762527187186,0.49378,3283.1,3282.7,3.2078]
[1762527187383,0.49385,3282.7,3282.1,3.2078]
[1762527187581,3.2078,3282.5,3282.1,3.70173]
[1762527187784,3.2078,3282.5,3282.1,3.2078]
[1762527187987,0.49385,3282.7,3282.1,3.2078]
[1762527188181,0.00454099,3282.7,3282.5,0.49387]
[1762527188385,0.00454099,3282.7,3282.1,3.21620031]
[1762527188791,3.2078,3282.5,3282.1,0.00840031]
[1762527189280,0.00454099,3282.7,3282.1,0.00840031]
[1762527189484,3.7017,3282.4,3282.1,0.00840031]
[1762527189885,3.2078,3282.4,3282.1,0.00840031]
[1762527190088,0.49391,3282.3,3282.1,0.00840031]
[1762527190488,8.0,3282.2,3280.6,3.2078]
[1762527190684,3.2078,3281.4,3280.6,3.2078]
[1762527190885,3.2078,3281.9,3281.3,0.5749]
[1762527191087,3.2078,3281.9,3281.7,0.49399]
[1762527191391,0.00454099,3282.7,3281.5,3.2078]
[1762527191587,0.00454099,3282.7,3282.3,0.4939]
[1762527191889,3.2078,3282.4,3281.8,0.00456745]
[1762527192189,0.00454099,3282.7,3282.6,0.49386]
[1762527192489,0.00454099,3282.7,3281.8,0.49853745]
[1762527192686,0.00454099,3282.7,3281.8,0.00456745]
[1762527192687,0.49396,3282.0,3281.8,0.00456745]
[1762527192887,3.2078,3282.2,3280.4,3.2078]
[1762527193094,3.2078,3280.6,3279.1,1.3611348]
[1762527193286,3.2078,3280.6,3278.7,4.82900627]
[1762527193287,0.49435,3279.4,3278.7,3.2078]
[1762527193486,3.2078,3279.2,3278.2,3.2078]
[1762527193687,0.49441,3279.0,3278.2,3.2078]
[1762527193989,0.49899449,3278.9,3278.5,0.49446]
[1762527194295,0.00457449,3278.9,3278.7,0.49444]
[1762527194596,3.2078,3280.1,3278.6,3.2078]
[1762527194794,3.2078,3280.5,3279.8,0.49427]
[1762527195092,3.2078,3280.1,3278.6,3.2078]
[1762527195293,0.49434,3279.5,3278.6,3.2078]
[1762527195490,0.00457449,3279.4,3278.7,0.00457449]
[1762527195694,0.00457449,3279.4,3279.2,0.49436]
[1762527196198,3.2078,3279.3,3278.7,3.21237449]
[1762527196502,3.70222,3278.9,3278.7,0.00457449]
[1762527197088,8.0,3278.8,3278.2,0.00361088]
[1762527197394,0.4945,3278.4,3278.2,0.00361088]
[1762527197598,0.00457449,3279.4,3278.2,3.21141088]
[1762527197599,3.2078,3278.9,3278.2,3.21141088]
[1762527197993,3.2078,3278.9,3278.7,0.49445]
[1762527198299,3.2078,3279.0,3278.8,0.49443]
[1762527198595,0.00457449,3279.4,3279.2,0.49437]
[1762527198798,0.00457449,3279.4,3279.2,3.70217]
[1762527199097,0.49423,3280.3,3279.4,0.49435]
[1762527199391,3.2078,3280.1,3279.8,0.49428]
[1762527199597,3.2078,3280.1,3278.6,3.2078]
[1762527199794,3.2078,3279.3,3278.6,3.2078]
[1762527199996,3.2078,3279.3,3278.6,0.00457449]
[1762527199997,3.2078,3278.8,3278.6,0.00457449]
[1762527200197,0.00836593,3279.3,3278.6,0.00457449]
[1762527200694,0.00836593,3279.3,3279.0,3.2078]
[1762527200892,0.00836593,3279.3,3279.1,0.49438]
[1762527201290,3.2078,3280.1,3280.0,0.49426]
[1762527201994,3.70206,3280.1,3279.1,0.5749]
[1762527202193,3.21017769,3280.1,3279.9,0.49427]
[1762527202395,0.49403,3281.6,3279.5,0.7862348]
[1762527202596,0.3073,3282.4,3279.7,0.7862348]
[1762527202794,0.3073,3282.4,3281.2,0.49407]
[1762527202992,0.3073,3282.4,3279.9,0.7862348]
[1762527203194,0.49404,3281.5,3280.8,0.49413]
[1762527203397,0.5562,3281.3,3280.8,0.00268259]
[1762527203593,0.5562,3281.3,3279.0,3.2078]
[1762527203794,0.4942,3280.5,3279.0,3.2078]
[1762527204095,0.5562,3281.3,3279.0,3.2078]
[1762527204292,0.49419,3280.5,3280.3,0.49421]
[1762527204603,0.49418,3280.5,3280.3,0.00225167]
[1762527205100,0.49438,3279.2,3279.0,3.2078]
[1762527205295,0.49438,3279.2,3279.0,3.11760509]
[1762527205695,0.5562,3279.1,3279.0,3.11760509]
[1762527205895,0.49442,3279.0,3277.1,0.7862348]
[1762527206097,0.00238502,3279.1,3279.0,0.0033903]
[1762527206600,0.55858502,3279.1,3279.0,0.0033903]
[1762527207091,8.55858502,3279.1,3277.8,0.49459]
[1762527207399,0.55858502,3279.1,3277.7,0.00457449]
[1762527207697,0.49452,3278.3,3277.8,0.49459]
[1762527207897,0.55858502,3279.1,3277.7,0.00457449]
[1762527208100,0.49454,3278.2,3277.7,0.00810131]
[1762527208403,0.49475,3276.8,3275.7,0.7862348]
[1762527208702,0.49475,3276.8,3276.4,0.4948]
[1762527209004,0.49483,3276.3,3274.9,0.7862348]
[1762527209307,0.5844,3276.9,3274.2,0.7862348]
[1762527209496,0.00263243,3276.3,3276.1,0.49484]
[1762527210099,0.00263243,3276.3,3275.3,0.00457449]
[1762527210600,1.08593727,3279.9,3276.2,3.90378723]
[1762527210796,0.49441,3279.1,3277.1,0.7862348]
[1762527211102,1.08593727,3281.4,3277.1,0.7862348]
[1762527211303,0.49439,3279.2,3278.5,0.49448]
[1762527211506,0.49439,3279.2,3278.5,0.00817707]
[1762527211507,0.00687776,3279.2,3278.5,0.00817707]
[1762527211697,0.49445,3278.8,3278.5,0.00817707]
[1762527211898,0.49442,3279.0,3278.6,0.49447]
[1762527212100,0.00687776,3279.2,3278.9,0.49443]
[1762527212298,0.00687776,3279.2,3278.5,0.00817707]
[1762527212792,0.00687776,3279.2,3279.1,0.4944]
[1762527213202,0.00687776,3279.2,3278.5,0.00817707]
[1762527213810,0.49447,3278.7,3278.5,0.00817707]
[1762527214002,0.00687776,3279.2,3278.5,0.50265707]
[1762527214206,0.00687776,3279.2,3278.8,0.49444]
[1762527214508,0.50126776,3279.2,3278.8,0.49444]
[1762527214702,0.00687776,3279.2,3279.0,0.4944]
[1762527214903,0.00687776,3279.2,3278.5,0.00817707]
[1762527215106,0.00687776,3279.2,3279.0,0.49441]
[1762527215300,0.5844,3281.3,3279.3,0.49436]
[1762527215506,0.49431,3279.7,3278.5,0.00817707]
[1762527215709,0.5844,3281.3,3278.5,0.00817707]
[1762527215911,0.5844,3281.3,3279.3,0.49436]
[1762527216207,0.00457448,3280.6,3278.5,0.00817707]
[1762527216512,0.5844,3279.1,3278.5,0.00817707]
[1762527216711,0.5844,3279.1,3277.3,0.7862348]